bitfinex-derivatives/quotes_BTCF0:USTF0_20240910
["timestamp","ask_amount","ask_price","bid_price","bid_amount"]
[1725988269032,0.18423463,57088.0,57087.0,0.28]
[1725988269836,0.09665563,57088.0,57083.0,0.28]
[1725988270036,0.09665563,57087.0,57082.0,0.087588]
[1725988270240,0.07710761,57086.0,57085.0,0.087584]
[1725988270532,0.004,57088.0,57086.0,0.087582]
[1725988270533,0.36349406,57087.0,57086.0,0.087582]
[1725988270743,0.09663224,57087.0,57086.0,0.088382]
[1725988271032,0.001,57090.0,57087.0,0.52552]
[1725988271235,0.006,57092.0,57091.0,0.087575]
[1725988271439,0.006,57092.0,57089.0,0.2808]
[1725988271636,0.087576,57090.0,57089.0,0.2808]
[1725988272132,0.17289316,57106.0,57090.0,0.52548]
[1725988272332,0.17289316,57113.0,57104.0,0.28]
[1725988272536,0.17289316,57115.0,57112.0,0.0008]
[1725988272833,0.34279959,57121.0,57112.0,0.0008]
[1725988272834,0.087541,57113.0,57112.0,0.0008]
[1725988273041,0.087537,57116.0,57112.0,0.0008]
[1725988273235,0.204028,57121.0,57115.0,0.0008]
[1725988273430,0.08753,57121.0,57114.0,0.087539]
[1725988273733,0.0802,57126.0,57112.0,0.0038]
[1725988273734,0.17289316,57122.0,57112.0,0.0038]
[1725988273935,0.28,57121.0,57112.0,0.0038]
[1725988274627,0.28,57125.0,57112.0,0.0038]
[1725988274842,0.08753,57121.0,57112.0,0.0038]
[1725988275029,0.11202259,57126.0,57112.0,0.2838]
[1725988275237,0.03182259,57126.0,57125.0,0.0008]
[1725988275431,0.087514,57131.0,57125.0,0.0008]
[1725988275735,0.3109077,57135.0,57130.0,0.0008]
[1725988275936,0.0309077,57135.0,57134.0,0.0008]
[1725988276142,0.087502,57139.0,57134.0,0.0008]
[1725988276334,0.612541,57139.0,57138.0,0.0008]
[1725988276731,0.03145033,57139.0,57138.0,0.0008]
[1725988276936,0.087494,57144.0,57138.0,0.0008]
[1725988277137,0.367501,57139.0,57138.0,0.0008]
[1725988277344,0.087507,57135.0,57134.0,0.001]
[1725988277539,0.367507,57135.0,57134.0,0.001]
[1725988277838,0.612587,57135.0,57134.0,0.001]
[1725988278040,0.087507,57135.0,57134.0,0.001]
[1725988278645,0.28,57144.0,57128.0,0.087517]
[1725988278840,0.087506,57136.0,57127.0,0.367519]
[1725988279036,0.087506,57136.0,57134.0,0.001]
[1725988279243,0.087498,57141.0,57135.0,0.28]
[1725988279537,0.087498,57141.0,57140.0,0.0008]
[1725988280341,0.087517,57129.0,57122.0,0.28]
[1725988280642,0.00168,57141.0,57126.0,0.28]
[1725988280840,0.0008,57141.0,57126.0,0.28]
[1725988281036,0.088298,57141.0,57140.0,0.0008]
[1725988281434,1.12584,57141.0,57122.0,0.28]
[1725988281632,0.087508,57135.0,57122.0,0.28]
[1725988281836,0.087508,57135.0,57119.0,0.087532]
[1725988281837,0.28,57136.0,57118.0,0.28]
[1725988282145,0.087522,57126.0,57109.0,0.087546]
[1725988282363,0.28,57131.0,57116.0,0.087536]
[1725988282535,0.0008,57141.0,57122.0,0.001]
[1725988282536,0.087523,57125.0,57122.0,0.001]
[1725988282733,0.087526,57123.0,57122.0,0.001]
[1725988282936,0.087526,57123.0,57122.0,0.005]
[1725988283540,0.087526,57123.0,57122.0,0.001]
[1725988284244,0.087531,57120.0,57116.0,0.011]
[1725988284439,0.087535,57117.0,57116.0,0.011]
[1725988284742,0.0005,57123.0,57116.0,0.011]
[1725988284940,0.088026,57123.0,57122.0,0.0008]
[1725988285138,0.088026,57123.0,57122.0,0.0018]
[1725988285332,0.089026,57123.0,57122.0,0.0018]
[1725988285843,0.089026,57123.0,57122.0,0.0008]
[1725988286340,0.089026,57123.0,57122.0,0.0018]
[1725988287243,0.0015,57123.0,57122.0,0.369327]
[1725988287545,0.1703,57140.0,57132.0,0.087511]
[1725988287842,0.1703,57140.0,57139.0,0.0008]
[1725988287843,0.11375526,57140.0,57139.0,0.0008]
[1725988288148,0.170299,57140.0,57139.0,0.0008]
[1725988289442,0.087499,57140.0,57139.0,0.0008]
[1725988289638,0.088499,57140.0,57139.0,0.0008]
[1725988290038,0.001,57140.0,57139.0,0.0008]
[1725988290253,0.001,57140.0,57139.0,0.088301]
[1725988290648,0.001,57140.0,57139.0,0.368301]
[1725988291146,0.001,57140.0,57139.0,0.0008]
[1725988291350,0.0008,57141.0,57139.0,0.2808]
[1725988291547,0.0008,57141.0,57139.0,0.0008]
[1725988291844,0.0008,57141.0,57140.0,0.0004]
[1725988292042,0.088298,57141.0,57140.0,0.0004]
[1725988292242,0.15565501,57150.0,57140.0,0.2804]
[1725988292450,0.04284576,57149.0,57144.0,0.28]
[1725988292644,0.03186121,57155.0,57139.0,0.005]
[1725988292842,0.2804,57140.0,57139.0,0.005]
[1725988293148,0.367899,57140.0,57139.0,0.005]
[1725988293347,1.492939,57140.0,57139.0,0.005]
[1725988293647,1.40544,57140.0,57125.0,0.0041]
[1725988293847,1.40544,57140.0,57115.0,0.087537]
[1725988293848,0.087527,57122.0,57119.0,0.0041]
[1725988294149,0.0004,57126.0,57110.0,0.0817]
[1725988294150,0.0004,57120.0,57115.0,0.087537]
[1725988294353,0.0004,57116.0,57113.0,0.28]
[1725988294646,0.0004,57114.0,57113.0,0.28]
[1725988294851,0.087527,57122.0,57113.0,0.28]
[1725988295051,0.00088,57129.0,57121.0,0.0004]
[1725988295255,0.087527,57122.0,57121.0,0.0004]
[1725988295440,0.14126094,57122.0,57121.0,0.0004]
[1725988295638,1.26646094,57122.0,57121.0,0.0004]
[1725988295952,1.26646094,57122.0,57113.0,0.028]
[1725988296148,0.0004,57114.0,57113.0,0.028]
[1725988296356,0.0004,57114.0,57113.0,0.308]
[1725988297054,0.173462,57122.0,57120.0,0.367529]
[1725988297361,0.173462,57122.0,57121.0,0.84231952]
[1725988297553,0.173462,57122.0,57121.0,0.94975647]
[1725988297850,0.173462,57122.0,57121.0,2.16225647]
[1725988298150,0.173462,57122.0,57121.0,2.32770928]
[1725988298347,0.173462,57122.0,57121.0,2.15325647]
[1725988298539,0.167762,57122.0,57121.0,2.40189614]
[1725988298745,0.167762,57122.0,57121.0,2.41389614]
[1725988298946,0.15816992,57125.0,57124.0,0.087524]
[1725988299147,0.15816992,57125.0,57124.0,1.05555147]
[1725988299457,0.15816992,57125.0,57124.0,0.96802747]
[1725988299754,0.15816992,57125.0,57124.0,0.94723152]
[1725988300053,0.15816992,57125.0,57124.0,1.58071147]
[1725988300243,0.15816992,57125.0,57124.0,2.0232054]
[1725988300447,0.15816992,57125.0,57124.0,2.37175239]
[1725988300757,0.15816992,57125.0,57124.0,2.18071147]
[1725988301139,0.15816992,57125.0,57124.0,1.58071147]
[1725988301344,0.15816992,57125.0,57124.0,2.18071147]
[1725988301544,0.02696992,57125.0,57124.0,2.18071147]
[1725988301750,0.02696992,57125.0,57124.0,2.20571147]
[1725988301948,0.0012,57135.0,57134.0,0.087509]
[1725988302153,0.0012,57135.0,57134.0,1.31830258]
[1725988304155,0.0012,57135.0,57134.0,1.32630258]
[1725988304646,0.0012,57135.0,57134.0,1.33530258]
[1725988305045,0.087486,57149.0,57135.0,0.087506]
[1725988305248,0.087499,57141.0,57139.0,0.18912831]
[1725988305448,0.03194536,57149.0,57140.0,1.13952189]
[1725988305751,0.087492,57145.0,57144.0,0.17194134]
[1725988305960,0.087492,57145.0,57144.0,0.86919447]
[1725988306151,0.612492,57145.0,57144.0,0.86919447]
[1725988306346,0.087492,57145.0,57144.0,0.69725313]
[1725988306547,0.612492,57145.0,57144.0,0.87050999]
[1725988307048,0.087486,57149.0,57144.0,0.69856865]
[1725988307244,0.11214964,57150.0,57147.0,0.15467382]
[1725988307444,0.11214964,57150.0,57148.0,0.85404247]
[1725988307654,0.11214964,57150.0,57149.0,0.69856865]
[1725988308257,0.087484,57150.0,57149.0,0.69618595]
[1725988309154,0.087484,57150.0,57149.0,0.4850324]
[1725988309347,0.087484,57150.0,57149.0,0.83352534]
[1725988309543,0.087484,57150.0,57149.0,0.69609893]
[1725988309743,0.087484,57150.0,57149.0,0.4850324]
[1725988309945,1.387372,57150.0,57149.0,0.60528952]
[1725988310157,1.387372,57150.0,57149.0,0.14476908]
[1725988310654,0.087493,57144.0,57143.0,0.12028049]
[1725988310858,0.174986,57144.0,57143.0,0.43990798]
[1725988311056,0.612493,57144.0,57143.0,0.13336987]
[1725988311244,0.525,57144.0,57143.0,0.13052557]
[1725988311559,0.087493,57144.0,57143.0,0.13052557]
[1725988312151,0.19098722,57144.0,57142.0,0.087495]
[1725988312361,0.0008,57149.0,57142.0,0.087495]
[1725988312362,0.09656948,57143.0,57142.0,0.087495]
[1725988312756,0.09656948,57143.0,57138.0,0.28]
[1725988312952,0.0008,57149.0,57142.0,0.14010505]
[1725988312953,0.087489,57147.0,57142.0,0.14010505]
[1725988313149,0.0008,57149.0,57145.0,0.05260905]
[1725988313150,0.09656996,57146.0,57145.0,0.05260905]
[1725988313357,0.001,57144.0,57143.0,0.367495]
[1725988313552,0.04385461,57144.0,57143.0,0.367495]
[1725988313756,0.05371535,57144.0,57143.0,0.28]
[1725988313954,0.0008,57149.0,57143.0,0.28]
[1725988313955,0.0008,57149.0,57148.0,0.087487]
[1725988314159,0.1917568,57160.0,57159.0,0.08747]
[1725988314349,0.36597801,57172.0,57159.0,0.80484]
[1725988314556,0.17422121,57169.0,57167.0,0.367457]
[1725988314753,0.1917568,57169.0,57162.0,0.367465]
[1725988315058,0.1742049,57164.0,57162.0,0.28]
[1725988315256,0.22789388,57163.0,57162.0,0.28]
[1725988315561,0.05368898,57163.0,57162.0,0.28]
[1725988316151,0.05368898,57164.0,57162.0,0.28]
[1725988316352,0.1917568,57169.0,57168.0,0.087457]
[1725988316353,0.22962291,57169.0,57168.0,0.087457]
[1725988316559,0.19146434,57175.0,57173.0,0.087449]
[1725988316757,0.04282178,57174.0,57172.0,0.087451]
[1725988316953,0.09649877,57173.0,57172.0,0.087451]
[1725988317162,0.0867,57189.0,57176.0,0.28]
[1725988317361,0.05367731,57188.0,57171.0,0.28]
[1725988317656,0.05367731,57188.0,57166.0,0.087458]
[1725988317657,0.28,57186.0,57167.0,0.28]
[1725988317861,0.087434,57183.0,57173.0,0.006]
[1725988318158,0.05367731,57182.0,57173.0,0.006]
[1725988318359,0.08744,57179.0,57167.0,0.28]
[1725988318563,0.05367731,57178.0,57176.0,0.003]
[1725988319161,0.08743,57186.0,57176.0,0.003]
[1725988319466,0.08743,57186.0,57185.0,0.0008]
[1725988319880,0.61203,57186.0,57185.0,0.0008]
[1725988320056,1.21203,57186.0,57185.0,0.0008]
[1725988320364,0.61203,57186.0,57185.0,0.0008]
[1725988320558,1.21203,57186.0,57185.0,0.0008]
[1725988320760,0.61203,57186.0,57185.0,0.0008]
[1725988320970,0.0867,57189.0,57185.0,0.0018]
[1725988321163,0.0867,57189.0,57188.0,0.0008]
[1725988321357,0.0041,57210.0,57188.0,0.0008]
[1725988321562,0.1748,57216.0,57209.0,0.0008]
[1725988321758,0.087365,57228.0,57209.0,0.0008]
[1725988321759,0.1759,57260.0,57215.0,0.0008]
[1725988322064,0.1759,57260.0,57209.0,0.0008]
[1725988322065,0.28,57231.0,57211.0,0.28]
[1725988322366,0.28,57220.0,57209.0,0.0008]
[1725988322666,0.28,57225.0,57209.0,0.0008]
[1725988322864,0.4474,57230.0,57224.0,0.0008]
[1725988323162,0.08737,57225.0,57224.0,0.0008]
[1725988323469,0.28,57225.0,57209.0,0.0049]
[1725988323658,0.087382,57218.0,57209.0,0.0018]
[1725988323961,0.28,57221.0,57209.0,0.001]
[1725988324268,0.087374,57222.0,57220.0,0.0008]
[1725988324454,0.28,57221.0,57220.0,0.0008]
[1725988324659,0.80428,57221.0,57205.0,0.28]
[1725988324868,0.28,57216.0,57195.0,0.2841]
[1725988325069,0.0008,57225.0,57187.0,0.0041]
[1725988325070,0.28,57196.0,57187.0,0.0041]
[1725988325266,0.28,57188.0,57173.0,0.0882]
[1725988325462,0.28,57188.0,57181.0,0.087437]
[1725988325668,0.28,57196.0,57173.0,0.3641]
[1725988325859,0.28,57196.0,57179.0,0.28]
[1725988326061,0.087414,57197.0,57195.0,0.0008]
[1725988326363,0.28,57196.0,57195.0,0.0008]
[1725988326564,0.28,57196.0,57184.0,0.087432]
[1725988326565,0.087422,57191.0,57178.0,0.091541]
[1725988326761,0.28,57189.0,57173.0,0.3641]
[1725988326961,0.28,57189.0,57182.0,0.087435]
[1725988327154,0.05367089,57188.0,57182.0,0.087435]
[1725988327463,0.05367089,57187.0,57173.0,0.3641]
[1725988327664,0.05367089,57186.0,57173.0,0.3641]
[1725988327866,0.05367089,57185.0,57184.0,0.087432]
[1725988328164,0.05366827,57185.0,57178.0,0.28]
[1725988328465,0.05366827,57184.0,57173.0,0.1121]
[1725988328672,0.05366827,57183.0,57180.0,0.087438]
[1725988328863,0.087411,57198.0,57173.0,0.1121]
[1725988328864,0.05366827,57182.0,57173.0,0.1121]
[1725988329064,0.05366827,57181.0,57173.0,0.1121]
[1725988329264,0.05366827,57180.0,57173.0,0.1121]
[1725988329462,0.37582619,57205.0,57178.0,0.087441]
[1725988329463,0.05366827,57179.0,57178.0,0.087441]
[1725988329776,0.06271401,57205.0,57178.0,0.28]
[1725988329972,0.0889,57206.0,57193.0,0.28]
[1725988329973,0.05365721,57204.0,57193.0,0.28]
[1725988330160,0.28,57212.0,57199.0,0.087409]
[1725988330161,0.05365721,57203.0,57199.0,0.087409]
[1725988330361,0.05365721,57203.0,57193.0,0.28]
[1725988330362,0.05365721,57202.0,57200.0,0.087408]
[1725988330564,0.05365721,57201.0,57200.0,0.087408]
[1725988330872,0.05365721,57201.0,57194.0,0.087416]
[1725988331073,0.0004,57195.0,57182.0,0.081]
[1725988331265,0.05365721,57194.0,57186.0,0.28]
[1725988331470,0.05365721,57194.0,57193.0,0.009]
[1725988331966,0.05365721,57194.0,57175.0,0.28]
[1725988332165,0.05365721,57194.0,57175.0,0.367446]
[1725988332166,0.0004,57176.0,57175.0,0.367446]
[1725988332667,0.0004,57176.0,57175.0,1.492166]
[1725988332874,0.28,57185.0,57172.0,0.08745]
[1725988333173,0.0004,57173.0,57172.0,0.08745]
[1725988333374,0.05407579,57173.0,57167.0,0.0833]
[1725988333670,0.05367574,57172.0,57171.0,0.087451]
[1725988333870,0.05367574,57172.0,57167.0,0.0833]
[1725988333871,0.05367574,57172.0,57168.0,0.087456]
[1725988334061,0.001,57176.0,57171.0,0.0687311]
[1725988334267,0.1058452,57184.0,57175.0,0.0004]
[1725988334574,0.087424,57190.0,57183.0,0.0004]
[1725988334883,0.087428,57187.0,57179.0,0.05097996]
[1725988335068,0.087431,57185.0,57178.0,0.05097996]
[1725988335373,0.0004,57179.0,57178.0,0.13842096]
[1725988335572,0.0004,57179.0,57178.0,0.087441]
[1725988336077,0.0004,57179.0,57177.0,0.05100785]
[1725988336281,0.0004,57179.0,57178.0,0.05100785]
[1725988336468,0.28,57185.0,57178.0,0.05100785]
[1725988336666,0.28,57185.0,57184.0,0.0004]
[1725988337969,0.28,57185.0,57184.0,0.0054]
[1725988338174,0.28,57185.0,57184.0,0.0094]
[1725988338674,0.28,57185.0,57184.0,0.0044]
[1725988339079,0.8046,57185.0,57184.0,0.0094]
[1725988339265,0.28,57190.0,57184.0,0.0094]
[1725988339466,0.28,57190.0,57189.0,0.0004]
[1725988339771,0.28,57196.0,57189.0,0.0004]
[1725988339972,0.087416,57195.0,57189.0,0.0004]
[1725988340268,0.08742,57192.0,57188.0,0.05100785]
[1725988340465,0.0004,57189.0,57188.0,0.05100785]
[1725988340666,0.0004,57189.0,57188.0,0.0687311]
[1725988340867,0.0004,57189.0,57184.0,0.004]
[1725988340868,0.0004,57189.0,57187.0,0.0687311]
[1725988341077,0.0004,57189.0,57184.0,0.004]
[1725988341376,0.0004,57185.0,57184.0,0.091432]
[1725988342477,0.0004,57185.0,57184.0,0.096432]
[1725988342678,0.0004,57185.0,57184.0,0.092432]
[1725988342878,0.33387888,57196.0,57184.0,0.005]
[1725988343177,0.1744,57198.0,57195.0,0.0004]
[1725988343365,0.22571218,57199.0,57197.0,0.0004]
[1725988343569,0.28,57206.0,57198.0,0.0004]
[1725988343570,0.087404,57203.0,57198.0,0.0004]
[1725988343769,0.457479,57206.0,57202.0,0.0004]
[1725988343968,0.89364,57206.0,57205.0,0.0004]
[1725988344172,0.087411,57198.0,57195.0,0.0004]
[1725988344379,0.0004,57196.0,57195.0,0.0014]
[1725988345571,0.892334,57196.0,57195.0,0.0014]
[1725988345777,0.08744,57180.0,57175.0,0.0004]
[1725988345977,0.0004,57176.0,57175.0,0.0004]
[1725988346378,0.0872,57181.0,57175.0,0.0004]
[1725988346677,0.0872,57181.0,57175.0,0.087846]
[1725988346977,0.174637,57181.0,57180.0,0.0004]
[1725988347371,0.454637,57181.0,57180.0,0.0004]
[1725988347773,0.0872,57181.0,57180.0,0.0004]
[1725988348174,0.0872,57181.0,57180.0,0.0084]
[1725988348677,0.174637,57181.0,57180.0,0.0074]
[1725988348882,0.699277,57181.0,57180.0,0.0074]
[1725988349075,0.174637,57181.0,57180.0,0.0074]
[1725988349379,0.087435,57183.0,57180.0,0.0074]
[1725988349682,0.087435,57183.0,57182.0,0.0004]
[1725988349889,0.087435,57183.0,57182.0,0.05189336]
[1725988350080,1.57951,57183.0,57182.0,0.0004]
[1725988350775,1.492075,57183.0,57182.0,0.0004]
[1725988350973,0.52464,57183.0,57182.0,0.0034]
[1725988351179,0.0829,57191.0,57182.0,0.0034]
[1725988351370,0.087429,57187.0,57182.0,0.0034]
[1725988351683,0.003,57183.0,57182.0,0.14192167]
[1725988352075,0.087424,57190.0,57182.0,0.14192167]
[1725988352381,0.087424,57190.0,57189.0,0.0004]
[1725988352971,0.170322,57191.0,57189.0,0.0004]
[1725988353271,0.3677,57197.0,57190.0,0.0004]
[1725988353477,0.36858,57197.0,57194.0,0.0004]
[1725988353683,0.3677,57197.0,57196.0,0.0004]
[1725988353979,0.455113,57197.0,57194.0,0.0004]
[1725988354279,0.087415,57195.0,57194.0,0.0004]
[1725988354588,0.0004,57195.0,57194.0,0.0014]
[1725988354772,0.69975,57195.0,57194.0,0.0024]
[1725988355083,0.087815,57195.0,57194.0,0.0024]
[1725988355475,0.088815,57195.0,57194.0,0.0024]
[1725988355777,0.613335,57195.0,57194.0,0.0024]
[1725988356271,0.088815,57195.0,57194.0,0.0024]
[1725988356579,0.0014,57195.0,57194.0,0.0024]
[1725988357281,0.0014,57195.0,57194.0,0.0014]
[1725988357477,0.088815,57195.0,57194.0,0.0024]
[1725988357678,0.17623,57195.0,57194.0,0.0024]
[1725988357881,1.29975,57195.0,57194.0,0.0014]
[1725988358080,0.087429,57186.0,57185.0,0.05148667]
[1725988358279,0.087424,57190.0,57176.0,0.27953965]
[1725988358280,0.087431,57185.0,57181.0,0.0687311]
[1725988358480,0.0004,57186.0,57184.0,0.05157102]
[1725988358679,0.174862,57185.0,57184.0,0.05157102]
[1725988358979,0.174862,57185.0,57175.0,0.0004]
[1725988358980,0.0004,57186.0,57182.0,0.05157102]
[1725988359183,0.0004,57186.0,57185.0,0.0004]
[1725988359378,0.087431,57185.0,57181.0,0.05157102]
[1725988359774,0.087431,57185.0,57182.0,0.05157102]
[1725988359976,0.00088,57190.0,57189.0,0.087425]
[1725988360182,0.002,57195.0,57192.0,0.087419]
[1725988360374,0.002,57195.0,57194.0,0.0004]
[1725988360571,0.03095259,57199.0,57193.0,0.087418]
[1725988360776,0.087404,57203.0,57198.0,0.0004]
[1725988360980,0.087406,57202.0,57198.0,0.0004]
[1725988361476,0.0878,57205.0,57198.0,0.0004]
[1725988361677,0.087407,57201.0,57198.0,0.0004]
[1725988361884,0.003,57199.0,57198.0,0.0004]
[1725988362278,0.090409,57199.0,57198.0,0.0004]
[1725988362482,0.003,57199.0,57198.0,0.0004]
[1725988363191,0.090409,57199.0,57198.0,0.0004]
[1725988363389,0.087409,57199.0,57198.0,0.0004]
[1725988363980,0.700298,57199.0,57198.0,0.0004]
[1725988364179,0.75396812,57199.0,57198.0,0.0004]
[1725988364484,0.75796812,57199.0,57198.0,0.0004]
[1725988364687,0.087416,57195.0,57189.0,0.0004]
[1725988364895,0.00596001,57199.0,57189.0,0.0004]
[1725988365091,0.0004,57190.0,57189.0,0.0004]
[1725988365586,0.005,57199.0,57198.0,0.087411]
[1725988365795,0.05866296,57199.0,57198.0,0.087811]
[1725988366778,0.05466296,57199.0,57198.0,0.087411]
[1725988367089,0.05766296,57199.0,57198.0,0.087411]
[1725988367279,0.05766296,57199.0,57198.0,0.174822]
[1725988367485,0.05766296,57199.0,57198.0,0.087411]
[1725988367683,0.05766296,57199.0,57198.0,0.174822]
[1725988367990,0.04546342,57199.0,57198.0,1.299302]
[1725988368190,0.04646342,57199.0,57198.0,1.299302]
[1725988369189,0.04646342,57199.0,57198.0,0.087411]
[1725988369898,0.04246342,57199.0,57198.0,0.087411]
[1725988370098,0.04246342,57199.0,57198.0,0.110411]
[1725988370099,0.04146342,57199.0,57198.0,0.110411]
[1725988370489,0.04146342,57199.0,57198.0,0.098411]
[1725988370690,0.04246342,57199.0,57198.0,0.112411]
[1725988370888,0.04246342,57199.0,57198.0,0.115411]
[1725988371089,0.04146342,57199.0,57198.0,0.101411]
[1725988371291,0.04146342,57199.0,57198.0,0.113411]
[1725988371496,0.04146342,57199.0,57198.0,0.24661847]
[1725988372594,0.04146342,57199.0,57198.0,0.33236283]
[1725988372793,0.04146342,57199.0,57198.0,0.32036283]
[1725988372997,0.04246342,57199.0,57198.0,0.33436283]
[1725988373202,0.04246342,57199.0,57198.0,0.42177383]
[1725988373393,0.04146342,57199.0,57198.0,0.30636283]
[1725988373700,0.04246342,57199.0,57198.0,0.115411]
[1725988373889,0.04246342,57199.0,57198.0,0.3343625]
[1725988374193,0.0874,57206.0,57205.0,0.087399]
[1725988374502,0.087403,57203.0,57199.0,0.05143596]
[1725988374796,0.087403,57203.0,57198.0,0.023]
[1725988374797,0.174818,57199.0,57198.0,0.023]
[1725988374990,0.175218,57199.0,57198.0,0.023]
[1725988375396,0.699698,57199.0,57198.0,0.023]
[1725988375695,0.699698,57199.0,57185.0,0.17484436]
[1725988375696,0.087421,57192.0,57189.0,0.05143596]
[1725988375893,0.0004,57190.0,57188.0,0.05143596]
[1725988376196,0.087429,57186.0,57183.0,0.05143596]
[1725988376396,0.0004,57184.0,57181.0,0.05143596]
[1725988376600,0.0004,57184.0,57183.0,0.05143596]
[1725988377493,0.0004,57184.0,57181.0,0.06858128]
[1725988377696,0.0004,57182.0,57181.0,0.06858128]
[1725988378401,0.0004,57182.0,57181.0,0.06866156]
[1725988378603,0.0004,57182.0,57175.0,0.08574436]
[1725988378893,0.0004,57182.0,57175.0,0.17319036]
[1725988378894,0.0004,57176.0,57175.0,0.17319036]
[1725988379099,0.0004,57176.0,57175.0,0.58644677]
[1725988379298,0.0004,57176.0,57175.0,0.367446]
[1725988379701,0.0004,57176.0,57175.0,0.454892]
[1725988380096,0.0004,57176.0,57175.0,0.367446]
[1725988380291,0.0014,57176.0,57175.0,0.367446]
[1725988380498,0.0024,57176.0,57175.0,0.373446]
[1725988380797,0.0004,57184.0,57175.0,0.373446]
[1725988381097,0.0004,57184.0,57175.0,0.093446]
[1725988381098,0.001,57176.0,57175.0,0.093446]
[1725988381304,0.001,57176.0,57175.0,0.180892]
[1725988381704,0.0004,57190.0,57189.0,0.087425]
[1725988381903,0.0004,57190.0,57189.0,0.087825]
[1725988382703,0.0004,57190.0,57189.0,0.367825]
[1725988382892,0.0788,57204.0,57189.0,0.2804]
[1725988382893,0.087408,57200.0,57189.0,0.2804]
[1725988383092,0.0788,57204.0,57199.0,0.2804]
[1725988383295,0.03104345,57216.0,57207.0,0.087397]
[1725988383496,0.0774,57215.0,57207.0,0.087797]
[1725988383695,0.0774,57215.0,57207.0,0.087397]
[1725988384406,0.087388,57213.0,57207.0,0.087397]
[1725988384702,0.08739,57212.0,57207.0,0.087397]
[1725988384905,0.0774,57215.0,57207.0,0.087397]
[1725988384906,0.087393,57210.0,57207.0,0.087397]
[1725988385404,0.089395,57208.0,57203.0,0.087403]
[1725988385599,0.0004,57204.0,57203.0,0.087403]
[1725988386598,0.0004,57204.0,57203.0,0.093403]
[1725988386805,0.0004,57204.0,57203.0,0.098403]
[1725988387101,0.0014,57204.0,57203.0,0.098403]
[1725988387502,0.0014,57204.0,57203.0,0.093403]
[1725988387802,0.0014,57204.0,57203.0,0.098403]
[1725988388890,0.088802,57204.0,57203.0,0.011]
[1725988390508,0.087408,57200.0,57199.0,0.0004]
[1725988390709,0.087808,57200.0,57199.0,0.0004]
[1725988391005,0.0004,57200.0,57199.0,0.0004]
[1725988391799,0.0014,57200.0,57199.0,0.0104]
[1725988392407,0.088808,57200.0,57199.0,0.0104]
[1725988392613,0.087413,57197.0,57181.0,0.28]
[1725988392796,0.0014,57200.0,57181.0,0.28]
[1725988392999,0.0004,57182.0,57181.0,0.087437]
[1725988394404,0.00065733,57182.0,57181.0,0.095437]
[1725988394603,3.3e-07,57182.0,57181.0,0.870311]
[1725988394809,3.3e-07,57182.0,57181.0,0.31611489]
[1725988394998,3.3e-07,57182.0,57181.0,1.44075489]
[1725988395197,3.3e-07,57182.0,57181.0,1.51315489]
[1725988395400,0.087409,57199.0,57181.0,1.33828089]
[1725988395597,0.001,57200.0,57196.0,0.05147247]
[1725988395801,0.001,57200.0,57199.0,0.0004]
[1725988396301,0.687408,57200.0,57199.0,0.0004]
[1725988397801,0.1494,57201.0,57199.0,0.0004]
[1725988398011,0.1494,57201.0,57200.0,0.0004]
[1725988398813,0.236806,57201.0,57200.0,0.0004]
[1725988399114,0.836806,57201.0,57200.0,0.0004]
[1725988399515,0.837806,57201.0,57200.0,0.0004]
[1725988399709,0.1554,57201.0,57200.0,0.088808]
[1725988399910,0.006,57201.0,57200.0,0.14028047]
[1725988400117,0.006,57201.0,57200.0,0.088808]
[1725988400511,0.006,57201.0,57200.0,0.176216]
[1725988400703,0.006,57201.0,57200.0,0.0014]
[1725988401012,0.006,57201.0,57200.0,0.05286624]
[1725988401214,0.006,57201.0,57200.0,0.088808]
[1725988401519,0.005,57201.0,57200.0,0.0014]
[1725988401814,0.01,57201.0,57200.0,0.0014]
[1725988402501,0.097406,57201.0,57200.0,0.0014]
[1725988402704,0.61,57201.0,57184.0,0.05145813]
[1725988402904,0.087417,57194.0,57187.0,0.087427]
[1725988403112,0.0963,57193.0,57187.0,0.087427]
[1725988403307,0.0963,57193.0,57192.0,0.08742]
[1725988404418,0.0973,57193.0,57192.0,0.08742]
[1725988405804,0.0973,57193.0,57188.0,0.087425]
[1725988406005,0.0973,57193.0,57192.0,0.004]
[1725988406414,0.6973,57193.0,57192.0,0.004]
[1725988406618,0.0973,57193.0,57181.0,0.28]
[1725988406818,0.0973,57193.0,57192.0,0.09142]
[1725988407402,0.0973,57193.0,57192.0,0.08742]
[1725988407616,0.03105756,57199.0,57198.0,0.087411]
[1725988407816,0.0953,57202.0,57198.0,0.0004]
[1725988408113,0.0032,57205.0,57198.0,0.0004]
[1725988408114,0.0032,57205.0,57204.0,0.087402]
[1725988408316,0.0032,57205.0,57204.0,0.087802]
[1725988408508,0.0032,57205.0,57204.0,0.087402]
[1725988409420,0.12621898,57211.0,57203.0,0.06861387]
[1725988409623,0.12621898,57211.0,57210.0,0.0008]
[1725988410613,0.14421898,57211.0,57210.0,0.0008]
[1725988411015,0.22260998,57211.0,57210.0,0.0008]
[1725988411316,0.23660998,57211.0,57210.0,0.0008]
[1725988411515,0.14921898,57211.0,57210.0,0.0008]
[1725988412112,0.14021898,57211.0,57210.0,0.0008]
[1725988412315,0.15421898,57211.0,57210.0,0.0008]
[1725988414013,0.24160998,57211.0,57210.0,0.0008]
[1725988414616,0.84160998,57211.0,57210.0,0.0008]
[1725988415011,0.75421898,57211.0,57204.0,0.05149902]
[1725988415216,0.087394,57210.0,57204.0,0.05149902]
[1725988415422,0.15501898,57211.0,57206.0,0.087397]